[Event "III Duchamp Open 2019"]
[Site "Rio de Janeiro"]
[Date "2019.12.13"]
[Round "9.9"]
[White "Zambrana, Oswaldo"]
[Black "Fernandez, Maria Florencia"]
[Result "1-0"]
[ECO "C04"]
[WhiteElo "2445"]
[BlackElo "2241"]
[Annotator "NA"]
[PlyCount "117"]
[EventDate "2019.12.07"]
[EventType "swiss"]
[EventCountry "BRA"]
[SourceTitle "playchess.com"]
[Source "ChessBase"]
[SourceQuality "1"]
[TimeControl "40/5400+30:1800+30"]

1. e4 {[%emt 0:17:19]} e6 {[%emt 0:00:00]} 2. d4 {[%emt 0:00:19]} d5 {[%emt 0:00:00]} 3. Nd2 {[%emt 0:00:05]} Nc6 {[%emt 0:00:05]} 4. Ngf3 {[%emt 0:01:02]} Nf6 {[%emt 0:00:14]} 5. e5 {[%emt 0:00:05]} Nd7 {[%emt 0:00:03]} 6. Nb3 {[%emt 0:11:25]} a5 {[%emt 0:00:35]} 7. a4 {[%emt 0:00:19]} Be7 {[%emt 0:00:17]} 8. c3 {[%emt 0:02:04]} f6 {[%emt 0:01:23]} 9. exf6 {[%emt 0:00:29]} Bxf6 {[%emt 0:00:08]} 10. Bb5 {[%emt 0:11:16]} O-O {[%emt 0:02:35]} 11. Bxc6 {[%emt 0:00:05]} bxc6 {[%emt 0:00:12]} 12. Bf4 {[%emt 0:00:07]} e5 {[%emt 0:01:24]} 13. dxe5 {[%emt 0:00:57]} Be7 {[%emt 0:03:19]} 14. Bg3 {[%emt 0:00:45]} Qe8 {[%emt 0:32:15]} 15. O-O {[%emt 0:00:38]} Nb6 {[%emt 0:06:22]} 16. e6 {[%emt 0:07:22]} Bxe6 {[%emt 0:06:25]} 17. Re1 {[%emt 0:05:25]} Bg4 {[%emt 0:01:04]} 18. Qe2 {[%emt 0:01:02]} Bd6 {[%emt 0:24:22]} 19. Qxe8 {[%emt 0:15:56]} Rfxe8 {[%emt 0:00:04]} 20. Rxe8+ {[%emt 0:00:20]} Rxe8 {[%emt 0:00:03]} 21. Bxd6 {[%emt 0:00:30]} cxd6 {[%emt 0:00:04]} 22. Nxa5 {[%emt 0:00:11]} Bxf3 {[%emt 0:04:34]} 23. gxf3 {[%emt 0:00:22]} Ra8 {[%emt 0:03:04]} 24. Nxc6 {[%emt 0:01:11]} Rxa4 {[%emt 0:00:02]} 25. Re1 {[%emt 0:01:08]} Ra2 {[%emt 0:01:25]} 26. b3 {[%emt 0:00:06]} Rb2 {[%emt 0:02:01]} 27. Nd4 {[%emt 0:00:14]} Kf7 {[%emt 0:00:52]} 28. Ra1 {[%emt 0:02:11]} Nd7 {[%emt 0:01:56]} 29. Ra7 {[%emt 0:02:49]} Ke8 {[%emt 0:01:44]} 30. Kg2 {[%emt 0:00:30]} g6 {[%emt 0:01:59]} 31. b4 {[%emt 0:00:24]} h5 {[%emt 0:01:33]} 32. h4 {[%emt 0:01:30]} Ne5 {[%emt 0:00:22]} 33. Nb5 {[%emt 0:00:38]} Nc4 {[%emt 0:01:55]} 34. Kg3 {[%emt 0:03:19]} Rb1 {[%emt 0:00:02]} 35. Nc7+ {[%emt 0:02:37]} Kf7 {[%emt 0:00:19]} 36. Nxd5+ {[%emt 0:00:33]} Ke6 {[%emt 0:00:09]} 37. Nf4+ {[%emt 0:08:58]} Kf6 {[%emt 0:00:10]} 38. Nh3 {[%emt 0:00:02]} Ne5 {[%emt 0:03:57]} 39. f4 {[%emt 0:01:06]} Nf7 {[%emt 0:01:58]} 40. Ng5 {[%emt 0:00:14]} Nxg5 {[%emt 0:00:33]} 41. fxg5+ {[%emt 0:31:47]} Ke5 {[%emt 0:02:30]} 42. Re7+ {[%emt 0:00:00]} Kf5 {[%emt 0:02:17]} 43. Rf7+ {[%emt 0:00:00]} Ke5 {[%emt 0:00:48]} 44. f4+ {[%emt 0:00:00]} Kd5 {[%emt 0:04:47]} 45. Rf6 {[%emt 0:00:00]} Rg1+ {[%emt 0:03:20]} 46. Kf2 {[%emt 0:00:00]} Rg4 {[%emt 0:00:33]} 47. Kf3 {[%emt 0:00:00]} Rxh4 {[%emt 0:00:12]} 48. c4+ {[%emt 0:00:00]} Kxc4 {[%emt 0:00:14]} 49. Rxd6 {[%emt 0:00:00]} Rh1 {[%emt 0:03:55]} 50. Rxg6 {[%emt 0:00:00]} Kd5 {[%emt 0:00:34]} 51. Rf6 {[%emt 0:00:00]} Rh3+ {[%emt 0:10:35]} 52. Kf2 {[%emt 0:00:00]} Ke4 {[%emt 0:00:41]} 53. Kg2 {[%emt 0:00:00]} Rb3 {[%emt 0:01:56]} 54. g6 {[%emt 0:00:00]} h4 {[%emt 0:00:04]} 55. b5 {[%emt 0:00:00]} Rb2+ {[%emt 0:04:58]} 56. Kh3 {[%emt 0:00:00]} Kf3 {[%emt 0:00:24]} 57. Kxh4 {[%emt 0:00:00]} Rxb5 {[%emt 0:00:08]} 58. g7 {[%emt 0:00:00]} Rb1 {[%emt 0:00:20]} 59. Kh5 {[%emt 0:00:00]} 1-0

[Event "III Duchamp Open 2019"]
[Site "Rio de Janeiro"]
[Date "2019.12.13"]
[Round "9.10"]
[White "Ambartsumova, Karina"]
[Black "Roselli Mailhe, Bernardo"]
[Result "1/2-1/2"]
[ECO "A49"]
[WhiteElo "2341"]
[BlackElo "2442"]
[Annotator "NA"]
[PlyCount "102"]
[EventDate "2019.12.07"]
[EventType "swiss"]
[EventCountry "BRA"]
[SourceTitle "playchess.com"]
[Source "ChessBase"]
[SourceQuality "1"]
[TimeControl "40/5400+30:1800+30"]

1. d4 {[%emt 0:00:00]} Nf6 {[%emt 0:03:56]} 2. Nf3 {[%emt 0:00:24]} g6 {[%emt 0:00:04]} 3. g3 {[%emt 0:00:38]} Bg7 {[%emt 0:00:05]} 4. Bg2 {[%emt 0:01:21]} O-O {[%emt 0:00:07]} 5. O-O {[%emt 0:00:29]} d6 {[%emt 0:00:05]} 6. b3 {[%emt 0:01:18]} a5 {[%emt 0:00:06]} 7. a4 {[%emt 0:01:55]} Nc6 {[%emt 0:00:53]} 8. Bb2 {[%emt 0:03:04]} e5 {[%emt 0:02:33]} 9. dxe5 {[%emt 0:02:55]} Ng4 {[%emt 0:00:08]} 10. Qc1 {[%emt 0:04:19]} Ncxe5 {[%emt 0:07:53]} 11. Nxe5 {[%emt 0:16:27]} Nxe5 {[%emt 0:01:35]} 12. Rd1 {[%emt 0:07:11]} Re8 {[%emt 0:11:51]} 13. Nd2 {[%emt 0:07:02]} c6 {[%emt 0:09:49]} 14. Nf3 {[%emt 0:08:06]} Qb6 {[%emt 0:07:16]} 15. Nxe5 {[%emt 0:07:00]} Bxe5 {[%emt 0:03:09]} 16. Bxe5 {[%emt 0:00:18]} dxe5 {[%emt 0:00:07]} 17. Qb2 {[%emt 0:07:35]} Bf5 {[%emt 0:12:49]} 18. Qc3 {[%emt 0:03:50]} Qb4 {[%emt 0:04:36]} 19. Qd2 {[%emt 0:10:33]} Qc5 {[%emt 0:08:05]} 20. Rac1 {[%emt 0:00:27]} Kg7 {[%emt 0:00:24]} 21. h3 {[%emt 0:01:37]} h5 {[%emt 0:02:51]} 22. e4 {[%emt 0:06:11]} Be6 {[%emt 0:00:05]} 23. Qd6 {[%emt 0:00:04]} Qxd6 {[%emt 0:03:51]} 24. Rxd6 {[%emt 0:00:01]} Red8 {[%emt 0:00:43]} 25. Rcd1 {[%emt 0:00:20]} Rxd6 {[%emt 0:00:04]} 26. Rxd6 {[%emt 0:00:05]} h4 {[%emt 0:01:07]} 27. gxh4 {[%emt 0:02:28]} Rh8 {[%emt 0:00:05]} 28. Kh2 {[%emt 0:00:05]} Rxh4 {[%emt 0:00:04]} 29. Rd8 {[%emt 0:00:06]} Rh8 {[%emt 0:00:04]} 30. Rxh8 {[%emt 0:00:29]} Kxh8 {[%emt 0:00:04]} 31. Bf1 {[%emt 0:06:16]} Kg7 {[%emt 0:00:34]} 32. Kg3 {[%emt 0:00:13]} Kf6 {[%emt 0:00:38]} 33. h4 {[%emt 0:02:39]} Ke7 {[%emt 0:08:48]} 34. f4 {[%emt 0:00:06]} Kd6 {[%emt 0:01:26]} 35. Bd3 {[%emt 0:00:41]} exf4+ {[%emt 0:03:23]} 36. Kxf4 {[%emt 0:00:01]} f6 {[%emt 0:00:20]} 37. e5+ {[%emt 0:00:44]} fxe5+ {[%emt 0:00:06]} 38. Kg5 {[%emt 0:00:02]} Bf7 {[%emt 0:00:11]} 39. Kf6 {[%emt 0:00:11]} Be8 {[%emt 0:00:06]} 40. c4 {[%emt 0:02:14]} b6 {[%emt 0:06:28]} 41. Bc2 {[%emt 0:06:19]} b5 {[%emt 0:09:29]} 42. cxb5 {[%emt 0:04:19]} cxb5 {[%emt 0:00:05]} 43. axb5 {[%emt 0:00:09]} Bxb5 {[%emt 0:04:16]} 44. Bxg6 {[%emt 0:00:19]} Be2 {[%emt 0:00:06]} 45. h5 {[%emt 0:00:16]} Bxh5 {[%emt 0:00:05]} 46. Bxh5 {[%emt 0:00:02]} Kd5 {[%emt 0:00:07]} 47. Kf5 {[%emt 0:05:47]} Kd4 {[%emt 0:01:56]} 48. Bf3 {[%emt 0:02:53]} Kc3 {[%emt 0:01:28]} 49. Bd5 {[%emt 0:00:17]} Kb4 {[%emt 0:00:07]} 50. Kxe5 {[%emt 0:00:11]} a4 {[%emt 0:00:06]} 51. bxa4 {[%emt 0:00:05]} Kxa4 {[%emt 0:00:04]} 1/2-1/2

[Event "III Duchamp Open 2019"]
[Site "Rio de Janeiro"]
[Date "2019.12.13"]
[Round "9.11"]
[White "Rocha, Vitor Firmo de Souza"]
[Black "Molina, Roberto Junio Brito"]
[Result "0-1"]
[ECO "B12"]
[WhiteElo "2169"]
[BlackElo "2448"]
[Annotator "NA"]
[PlyCount "90"]
[EventDate "2019.12.07"]
[EventType "swiss"]
[EventCountry "BRA"]
[SourceTitle "playchess.com"]
[Source "ChessBase"]
[SourceQuality "1"]
[TimeControl "40/5400+30:1800+30"]

1. e4 {[%emt 0:02:44]} c6 {[%emt 0:02:11]} 2. d4 {[%emt 0:00:10]} d5 {[%emt 0:00:03]} 3. e5 {[%emt 0:00:43]} Bf5 {[%emt 0:00:06]} 4. Nf3 {[%emt 0:00:13]} e6 {[%emt 0:00:03]} 5. Be2 {[%emt 0:00:08]} Nd7 {[%emt 0:00:31]} 6. O-O {[%emt 0:00:10]} Bg6 {[%emt 0:00:09]} 7. Nbd2 {[%emt 0:02:14]} Nh6 {[%emt 0:00:52]} 8. Nb3 {[%emt 0:00:14]} Be7 {[%emt 0:00:31]} 9. a4 {[%emt 0:01:32]} O-O {[%emt 0:00:36]} 10. a5 {[%emt 0:00:04]} Rc8 {[%emt 0:01:05]} 11. Bd2 {[%emt 0:02:05]} c5 {[%emt 0:01:30]} 12. Nxc5 {[%emt 0:06:18]} Nxc5 {[%emt 0:01:18]} 13. dxc5 {[%emt 0:00:05]} Bxc5 {[%emt 0:00:12]} 14. c3 {[%emt 0:10:11]} a6 {[%emt 0:01:08]} 15. g3 {[%emt 0:06:36]} Nf5 {[%emt 0:00:48]} 16. Kg2 {[%emt 0:01:09]} d4 {[%emt 0:17:52]} 17. Ne1 {[%emt 0:03:44]} dxc3 {[%emt 0:01:46]} 18. bxc3 {[%emt 0:03:49]} Rc7 {[%emt 0:02:21]} 19. Qc1 {[%emt 0:04:53]} Qc8 20. Qb2 {[%emt 0:03:07]} Rd8 {[%emt 0:02:29]} 21. Nf3 {[%emt 0:06:12]} Ne7 {[%emt 0:00:49]} 22. Rfd1 {[%emt 0:02:37]} Nc6 {[%emt 0:01:34]} 23. Bf4 {[%emt 0:01:11]} Rcd7 {[%emt 0:03:08]} 24. Re1 {[%emt 0:02:39]} h6 {[%emt 0:01:22]} 25. h3 {[%emt 0:02:20]} Qc7 {[%emt 0:02:46]} 26. Qa2 {[%emt 0:00:44]} Bd3 {[%emt 0:03:21]} 27. Bd1 Na7 28. g4 {[%emt 0:04:21]} Nb5 {[%emt 0:01:34]} 29. Qb2 {[%emt 0:02:43]} Qc6 {[%emt 0:03:43]} 30. g5 {[%emt 0:03:39]} Be4 {[%emt 0:02:43]} 31. Be2 {[%emt 0:01:01]} Rd3 {[%emt 0:00:16]} 32. Be3 {[%emt 0:01:05]} Bxe3 {[%emt 0:00:32]} 33. Bxd3 {[%emt 0:01:28]} Bxf3+ {[%emt 0:01:13]} 34. Kg3 {[%emt 0:07:51]} Bxg5 {[%emt 0:00:43]} 35. Be2 {[%emt 0:01:52]} Bxe2 {[%emt 0:01:15]} 36. Qxe2 {[%emt 0:00:34]} Nxc3 {[%emt 0:01:40]} 37. Qg4 {[%emt 0:01:12]} Rd3+ {[%emt 0:00:37]} 38. Kh2 {[%emt 0:01:41]} Rf3 {[%emt 0:01:19]} 39. Kg1 {[%emt 0:00:47]} Bd2 {[%emt 0:01:15]} 40. Red1 {[%emt 0:02:51]} Nxd1 {[%emt 0:00:49]} 41. Rxd1 {[%emt 0:30:09]} Bxa5 {[%emt 0:31:23]} 42. Rd6 {[%emt 0:00:28]} Qc1+ {[%emt 0:01:09]} 43. Kg2 {[%emt 0:00:13]} Rf5 {[%emt 0:00:19]} 44. Qd4 {[%emt 0:01:20]} Be1 {[%emt 0:01:08]} 45. Rd8+ {[%emt 0:01:00]} Kh7 {[%emt 0:00:05]} 0-1

[Event "III Duchamp Open 2019"]
[Site "Rio de Janeiro"]
[Date "2019.12.13"]
[Round "9.12"]
[White "Carraro, Denise"]
[Black "Rodi, Luis Ernesto"]
[Result "0-1"]
[ECO "C75"]
[WhiteElo "2177"]
[BlackElo "2341"]
[Annotator "NA"]
[PlyCount "102"]
[EventDate "2019.12.07"]
[EventType "swiss"]
[EventCountry "BRA"]
[SourceTitle "playchess.com"]
[Source "ChessBase"]
[SourceQuality "1"]
[TimeControl "40/5400+30:1800+30"]

1. e4 {[%emt 0:00:00]} e5 {[%emt 0:00:00]} 2. Nf3 {[%emt 0:00:10]} Nc6 {[%emt 0:00:00]} 3. Bb5 {[%emt 0:00:07]} a6 {[%emt 0:00:00]} 4. Ba4 {[%emt 0:00:03]} d6 {[%emt 0:00:00]} 5. c3 {[%emt 0:00:03]} Bd7 {[%emt 0:00:47]} 6. O-O {[%emt 0:04:58]} g6 {[%emt 0:00:28]} 7. d4 {[%emt 0:03:29]} Bg7 {[%emt 0:00:12]} 8. Re1 {[%emt 0:05:30]} Nf6 {[%emt 0:01:10]} 9. Nbd2 {[%emt 0:09:01]} Nh5 {[%emt 0:05:39]} 10. Nf1 {[%emt 0:00:37]} O-O {[%emt 0:01:06]} 11. Bg5 {[%emt 0:02:32]} f6 {[%emt 0:00:18]} 12. Be3 {[%emt 0:00:03]} Kh8 {[%emt 0:01:23]} 13. Qd2 {[%emt 0:04:50]} Nxd4 {[%emt 0:04:43]} 14. cxd4 {[%emt 0:13:26]} Bxa4 {[%emt 0:00:41]} 15. Qb4 {[%emt 0:00:01]} Bb5 {[%emt 0:01:51]} 16. a4 {[%emt 0:10:27]} Bxf1 {[%emt 0:03:52]} 17. Kxf1 {[%emt 0:00:03]} exd4 {[%emt 0:00:28]} 18. Nxd4 {[%emt 0:00:13]} c5 {[%emt 0:00:28]} 19. Ne6 {[%emt 0:02:32]} cxb4 {[%emt 0:04:01]} 20. Nxd8 {[%emt 0:00:02]} Raxd8 {[%emt 0:00:36]} 21. g4 {[%emt 0:00:02]} f5 {[%emt 0:00:11]} 22. gxh5 {[%emt 0:00:02]} Bxb2 {[%emt 0:00:20]} 23. Rab1 {[%emt 0:02:36]} Bc3 {[%emt 0:00:30]} 24. Red1 {[%emt 0:00:03]} fxe4 {[%emt 0:00:32]} 25. a5 {[%emt 0:00:10]} Rf5 {[%emt 0:02:07]} 26. hxg6 {[%emt 0:00:02]} hxg6 {[%emt 0:00:12]} 27. Bd4+ {[%emt 0:08:57]} Bxd4 {[%emt 0:03:19]} 28. Rxd4 {[%emt 0:00:02]} e3 {[%emt 0:00:11]} 29. Rb2 {[%emt 0:05:06]} Rxa5 {[%emt 0:05:27]} 30. fxe3 {[%emt 0:03:44]} Rf5+ {[%emt 0:00:12]} 31. Ke2 {[%emt 0:00:19]} a5 {[%emt 0:00:05]} 32. Kd3 {[%emt 0:02:05]} Kg7 {[%emt 0:00:40]} 33. Rc4 {[%emt 0:01:11]} Rc5 {[%emt 0:01:27]} 34. e4 {[%emt 0:11:04]} b5 {[%emt 0:01:50]} 35. Rd4 {[%emt 0:00:09]} Rc3+ {[%emt 0:00:14]} 36. Ke2 {[%emt 0:02:24]} Rh8 {[%emt 0:00:26]} 37. Kd1 {[%emt 0:00:52]} b3 {[%emt 0:02:05]} 38. Rxd6 {[%emt 0:01:54]} a4 {[%emt 0:00:34]} 39. Rg2 {[%emt 0:04:39]} Kf7 {[%emt 0:04:39]} 40. Rgxg6 {[%emt 0:00:40]} Rd3+ {[%emt 0:00:15]} 41. Rxd3 {[%emt 0:31:08]} Kxg6 {[%emt 0:30:02]} 42. Kc1 {[%emt 0:01:52]} Rxh2 {[%emt 0:01:13]} 43. Rd6+ {[%emt 0:02:14]} Kf7 {[%emt 0:00:22]} 44. Ra6 {[%emt 0:00:01]} Ra2 {[%emt 0:02:12]} 45. Ra5 {[%emt 0:02:03]} a3 {[%emt 0:00:33]} 46. Kb1 {[%emt 0:00:00]} b4 {[%emt 0:00:00]} 47. Rf5+ {[%emt 0:00:00]} Ke6 {[%emt 0:00:00]} 48. Rf3 {[%emt 0:00:00]} Rb2+ {[%emt 0:00:00]} 49. Ka1 {[%emt 0:00:00]} Ke5 {[%emt 0:00:00]} 50. Re3 {[%emt 0:00:00]} Kd4 {[%emt 0:00:00]} 51. Re1 {[%emt 0:00:00]} Rc2 0-1

[Event "III Duchamp Open 2019"]
[Site "Rio de Janeiro"]
[Date "2019.12.13"]
[Round "9.13"]
[White "Gauche, Charles"]
[Black "Moura, Eduardo Eugenio Chav"]
[Result "0-1"]
[ECO "C41"]
[WhiteElo "2248"]
[BlackElo "2098"]
[Annotator "NA"]
[PlyCount "96"]
[EventDate "2019.12.07"]
[EventType "swiss"]
[EventCountry "BRA"]
[SourceTitle "playchess.com"]
[Source "ChessBase"]
[SourceQuality "1"]
[TimeControl "40/5400+30:1800+30"]

1. e4 {[%emt 0:00:00]} d6 {[%emt 0:00:00]} 2. d4 {[%emt 0:00:00]} Nf6 {[%emt 0:00:00]} 3. Nc3 {[%emt 0:00:05]} e5 {[%emt 0:00:00]} 4. Nf3 {[%emt 0:00:38]} Nbd7 {[%emt 0:00:00]} 5. h3 {[%emt 0:01:08]} c6 {[%emt 0:01:52]} 6. Be3 {[%emt 0:00:37]} b5 {[%emt 0:02:48]} 7. a3 {[%emt 0:01:08]} a6 {[%emt 0:06:42]} 8. Be2 {[%emt 0:02:58]} Be7 {[%emt 0:01:48]} 9. O-O {[%emt 0:01:03]} O-O {[%emt 0:00:15]} 10. Nd2 {[%emt 0:00:28]} exd4 {[%emt 0:05:49]} 11. Bxd4 {[%emt 0:00:17]} c5 {[%emt 0:00:03]} 12. Be3 {[%emt 0:00:11]} Bb7 {[%emt 0:00:04]} 13. Bd3 {[%emt 0:03:34]} Ne5 {[%emt 0:05:45]} 14. f4 {[%emt 0:02:44]} Nxd3 {[%emt 0:00:22]} 15. cxd3 {[%emt 0:00:05]} d5 {[%emt 0:00:15]} 16. e5 {[%emt 0:00:06]} d4 {[%emt 0:00:06]} 17. exf6 {[%emt 0:00:19]} Bxf6 {[%emt 0:00:21]} 18. Nde4 {[%emt 0:12:08]} dxe3 {[%emt 0:02:10]} 19. Qe2 {[%emt 0:01:01]} Bd4 {[%emt 0:01:37]} 20. f5 {[%emt 0:00:04]} f6 {[%emt 0:01:23]} 21. Rf4 {[%emt 0:00:16]} Qc7 {[%emt 0:10:28]} 22. Rh4 {[%emt 0:01:06]} Rad8 {[%emt 0:02:02]} 23. Qh5 {[%emt 0:03:57]} h6 {[%emt 0:00:08]} 24. Rg4 {[%emt 0:03:25]} Kh8 {[%emt 0:03:44]} 25. Ne2 {[%emt 0:04:21]} Bxe4 {[%emt 0:10:46]} 26. Rxe4 {[%emt 0:05:31]} Bxb2 {[%emt 0:02:41]} 27. Re1 {[%emt 0:10:22]} Be5 {[%emt 0:03:10]} 28. Rxe3 {[%emt 0:00:50]} Qa5 {[%emt 0:03:41]} 29. Rf1 {[%emt 0:01:02]} Qd2 {[%emt 0:06:35]} 30. Qf3 {[%emt 0:01:27]} b4 {[%emt 0:01:46]} 31. axb4 {[%emt 0:00:26]} cxb4 {[%emt 0:00:03]} 32. Kh1 {[%emt 0:00:10]} a5 {[%emt 0:00:38]} 33. d4 {[%emt 0:01:40]} Bd6 {[%emt 0:01:03]} 34. Rd3 {[%emt 0:01:24]} Qb2 {[%emt 0:03:11]} 35. Rb3 {[%emt 0:02:09]} Qd2 {[%emt 0:02:23]} 36. Rd3 {[%emt 0:00:12]} Qa2 {[%emt 0:07:32]} 37. Rfd1 {[%emt 0:09:42]} Rfe8 {[%emt 0:05:28]} 38. R1d2 {[%emt 0:13:28]} Qa1+ {[%emt 0:01:57]} 39. Rd1 {[%emt 0:01:03]} Qa2 {[%emt 0:00:07]} 40. R1d2 {[%emt 0:00:20]} Qc4 {[%emt 0:00:10]} 41. d5 {[%emt 0:30:32]} a4 {[%emt 0:34:12]} 42. Rd4 {[%emt 0:00:41]} Qc1+ {[%emt 0:05:06]} 43. Rd1 {[%emt 0:00:21]} Qe3 {[%emt 0:00:16]} 44. Qxe3 {[%emt 0:01:05]} Rxe3 {[%emt 0:00:12]} 45. Nf4 {[%emt 0:00:02]} a3 {[%emt 0:00:00]} 46. Ne6 {[%emt 0:00:00]} Ra8 {[%emt 0:00:00]} 47. Nc7 {[%emt 0:00:00]} Bxc7 {[%emt 0:00:00]} 48. d6 {[%emt 0:00:00]} Bxd6 {[%emt 0:00:00]} 0-1

[Event "III Duchamp Open 2019"]
[Site "Rio de Janeiro"]
[Date "2019.12.13"]
[Round "9.14"]
[White "Donoso Diaz, Sebastian"]
[Black "Labussiere, Yago"]
[Result "1-0"]
[ECO "E71"]
[WhiteElo "2234"]
[BlackElo "2091"]
[Annotator "NA"]
[PlyCount "77"]
[EventDate "2019.12.07"]
[EventType "swiss"]
[EventCountry "BRA"]
[SourceTitle "playchess.com"]
[Source "ChessBase"]
[SourceQuality "1"]
[TimeControl "40/5400+30:1800+30"]

1. c4 {[%emt 0:00:00]} g6 {[%emt 0:01:29]} 2. Nc3 {[%emt 0:00:10]} Nf6 {[%emt 0:01:06]} 3. e4 {[%emt 0:00:33]} d6 {[%emt 0:00:41]} 4. d4 {[%emt 0:00:09]} Bg7 {[%emt 0:00:51]} 5. h3 {[%emt 0:00:12]} O-O {[%emt 0:02:01]} 6. Be3 {[%emt 0:00:09]} Na6 {[%emt 0:03:56]} 7. Nf3 {[%emt 0:00:12]} e5 {[%emt 0:03:13]} 8. d5 {[%emt 0:00:08]} Nc5 {[%emt 0:01:07]} 9. Nd2 {[%emt 0:00:06]} a5 {[%emt 0:02:12]} 10. g4 {[%emt 0:00:13]} c6 {[%emt 0:09:35]} 11. Be2 {[%emt 0:01:34]} Bd7 {[%emt 0:06:36]} 12. h4 {[%emt 0:07:43]} a4 {[%emt 0:11:35]} 13. g5 {[%emt 0:09:01]} Ne8 {[%emt 0:00:39]} 14. h5 {[%emt 0:01:59]} cxd5 {[%emt 0:03:50]} 15. cxd5 {[%emt 0:12:33]} Qb8 {[%emt 0:10:13]} 16. b4 {[%emt 0:23:14]} axb3 {[%emt 0:03:53]} 17. axb3 {[%emt 0:00:05]} Rxa1 {[%emt 0:11:51]} 18. Qxa1 {[%emt 0:00:06]} gxh5 {[%emt 0:09:39]} 19. b4 {[%emt 0:22:05]} Na6 {[%emt 0:00:48]} 20. b5 {[%emt 0:00:21]} Nc5 {[%emt 0:01:56]} 21. b6 {[%emt 0:01:12]} f5 {[%emt 0:05:43]} 22. f3 {[%emt 0:00:47]} Qc8 {[%emt 0:01:43]} 23. Rxh5 {[%emt 0:05:21]} fxe4 {[%emt 0:02:09]} 24. fxe4 {[%emt 0:00:28]} Bg4 {[%emt 0:01:13]} 25. Rh4 {[%emt 0:00:06]} Bd7 {[%emt 0:03:36]} 26. Bc4 {[%emt 0:00:39]} Qd8 {[%emt 0:00:43]} 27. Qb1 {[%emt 0:06:23]} h6 {[%emt 0:00:21]} 28. Rh2 {[%emt 0:00:37]} hxg5 {[%emt 0:00:23]} 29. Bxc5 {[%emt 0:00:13]} dxc5 {[%emt 0:00:06]} 30. d6+ {[%emt 0:00:06]} Rf7 {[%emt 0:00:15]} 31. Bxf7+ {[%emt 0:02:25]} Kxf7 {[%emt 0:00:02]} 32. Rf2+ {[%emt 0:00:04]} Kg6 {[%emt 0:01:04]} 33. Nc4 {[%emt 0:01:16]} Be6 {[%emt 0:01:19]} 34. Qd3 {[%emt 0:00:01]} Bxc4 {[%emt 0:00:38]} 35. Qxc4 {[%emt 0:00:05]} Nxd6 {[%emt 0:00:27]} 36. Qe6+ {[%emt 0:01:20]} Bf6 {[%emt 0:00:30]} 37. Nd5 {[%emt 0:00:05]} Ne8 {[%emt 0:00:31]} 38. Qg8+ {[%emt 0:00:12]} Bg7 {[%emt 0:00:32]} 39. Qf7+ {[%emt 0:00:14]} 1-0

[Event "III Duchamp Open 2019"]
[Site "Rio de Janeiro"]
[Date "2019.12.13"]
[Round "9.15"]
[White "Terao, Juliana Sayumi"]
[Black "Lopes, Artur Farias"]
[Result "1-0"]
[ECO "B50"]
[WhiteElo "2225"]
[BlackElo "1995"]
[Annotator "NA"]
[PlyCount "76"]
[EventDate "2019.12.07"]
[EventType "swiss"]
[EventCountry "BRA"]
[SourceTitle "playchess.com"]
[Source "ChessBase"]
[SourceQuality "1"]
[TimeControl "40/5400+30:1800+30"]

1. e4 {[%emt 0:00:00]} c5 {[%emt 0:05:27]} 2. Nf3 {[%emt 0:00:12]} d6 {[%emt 0:00:07]} 3. c3 {[%emt 0:02:41]} Nf6 {[%emt 0:00:10]} 4. Bd3 {[%emt 0:01:15]} g6 {[%emt 0:01:09]} 5. O-O {[%emt 0:00:22]} Bg7 {[%emt 0:00:03]} 6. Re1 {[%emt 0:00:31]} O-O {[%emt 0:00:15]} 7. Bf1 {[%emt 0:00:28]} e5 {[%emt 0:07:24]} 8. d4 {[%emt 0:08:50]} Bg4 {[%emt 0:02:10]} 9. dxe5 {[%emt 0:01:40]} Bxf3 {[%emt 0:00:33]} 10. Qxf3 {[%emt 0:00:06]} dxe5 {[%emt 0:00:07]} 11. Na3 {[%emt 0:00:49]} Nbd7 {[%emt 0:07:15]} 12. Bg5 {[%emt 0:03:16]} a6 {[%emt 0:01:14]} 13. Rad1 {[%emt 0:00:36]} Qc7 {[%emt 0:00:51]} 14. Nc4 {[%emt 0:19:56]} Rae8 {[%emt 0:05:14]} 15. Rd2 {[%emt 0:03:43]} b5 {[%emt 0:06:21]} 16. Ne3 {[%emt 0:00:08]} c4 {[%emt 0:07:57]} 17. Red1 {[%emt 0:03:08]} Re6 {[%emt 0:10:48]} 18. Nd5 {[%emt 0:08:16]} Qb7 {[%emt 0:15:45]} 19. g3 {[%emt 0:06:57]} Nxd5 {[%emt 0:02:44]} 20. Rxd5 {[%emt 0:00:15]} Nb6 {[%emt 0:02:14]} 21. R5d2 {[%emt 0:02:33]} f5 {[%emt 0:01:21]} 22. Bg2 {[%emt 0:01:09]} f4 {[%emt 0:04:43]} 23. Qg4 {[%emt 0:01:39]} Ree8 {[%emt 0:02:03]} 24. gxf4 {[%emt 0:01:40]} exf4 {[%emt 0:03:49]} 25. Bxf4 {[%emt 0:00:19]} Kh8 {[%emt 0:07:57]} 26. Bd6 {[%emt 0:01:25]} Rg8 {[%emt 0:00:59]} 27. e5 {[%emt 0:01:17]} Qc8 {[%emt 0:00:36]} 28. Qh4 {[%emt 0:01:08]} Qf5 {[%emt 0:01:47]} 29. Bc7 {[%emt 0:14:11]} Nc8 {[%emt 0:01:43]} 30. Rd7 {[%emt 0:02:03]} g5 {[%emt 0:00:43]} 31. Qh5 {[%emt 0:00:57]} Bxe5 {[%emt 0:00:57]} 32. Rf7 {[%emt 0:02:52]} Qc2 {[%emt 0:01:01]} 33. Bxe5+ {[%emt 0:00:52]} Rxe5 {[%emt 0:00:01]} 34. Rdd7 {[%emt 0:00:24]} Re1+ {[%emt 0:00:55]} 35. Bf1 {[%emt 0:00:05]} Rxf1+ {[%emt 0:00:36]} 36. Kxf1 {[%emt 0:00:05]} Qb1+ {[%emt 0:00:14]} 37. Kg2 {[%emt 0:00:29]} Qe4+ {[%emt 0:00:03]} 38. Qf3 {[%emt 0:00:10]} Qh4 {[%emt 0:01:12]} 1-0

[Event "III Duchamp Open 2019"]
[Site "Rio de Janeiro"]
[Date "2019.12.13"]
[Round "9.16"]
[White "Gazola, Vanessa Ramos"]
[Black "Cezila Jr, Rubens"]
[Result "0-1"]
[ECO "E12"]
[WhiteElo "1990"]
[BlackElo "2191"]
[Annotator "NA"]
[PlyCount "36"]
[EventDate "2019.12.07"]
[EventType "swiss"]
[EventCountry "BRA"]
[SourceTitle "playchess.com"]
[Source "ChessBase"]
[SourceQuality "1"]
[TimeControl "40/5400+30:1800+30"]

1. d4 {[%emt 0:08:46]} Nf6 {[%emt 0:00:00]} 2. c4 {[%emt 0:00:00]} e6 {[%emt 0:00:00]} 3. Nf3 {[%emt 0:00:22]} b6 {[%emt 0:00:16]} 4. a3 {[%emt 0:00:30]} Ba6 {[%emt 0:00:30]} 5. Qc2 {[%emt 0:00:30]} Bb7 {[%emt 0:00:30]} 6. Nc3 {[%emt 0:00:30]} c5 {[%emt 0:00:04]} 7. Bg5 {[%emt 0:00:30]} cxd4 {[%emt 0:00:30]} 8. Nxd4 {[%emt 0:00:00]} Nc6 {[%emt 0:00:43]} 9. Nxc6 {[%emt 0:00:03]} Bxc6 {[%emt 0:00:15]} 10. e4 {[%emt 0:00:09]} h6 {[%emt 0:00:30]} 11. Bh4 {[%emt 0:02:02]} Qb8 {[%emt 0:01:37]} 12. Bd3 {[%emt 0:11:09]} Bd6 {[%emt 0:00:59]} 13. Bg3 {[%emt 0:00:53]} O-O {[%emt 0:07:43]} 14. Qe2 {[%emt 0:04:34]} Be5 {[%emt 0:08:01]} 15. O-O {[%emt 0:08:14]} d6 {[%emt 0:08:30]} 16. Rac1 {[%emt 0:09:17]} Qb7 {[%emt 0:19:24]} 17. Rfe1 Rae8 {[%emt 0:02:38]} 18. Kh1 {[%emt 0:06:43]} Nd7 {[%emt 0:00:22]} 0-1